bitfinex/quotes_ETHUSD_20251023
["timestamp","ask_amount","ask_price","bid_price","bid_amount"]
[1761228862250,5.1012,3818.3,3818.2,0.93057481]
[1761228862417,7.72016655,3818.3,3818.2,0.93057481]
[1761228862621,7.83186655,3818.3,3818.2,0.93057481]
[1761228862963,21.66260258,3818.3,3818.2,0.93057481]
[1761228863169,4.83712325,3818.3,3818.2,0.93057481]
[1761228863387,7.83186655,3818.3,3818.2,0.93057481]
[1761228863590,7.83186655,3818.3,3818.2,1.43745481]
[1761228863866,2.61893045,3818.4,3818.3,0.50688]
[1761228864066,6.16493045,3818.4,3818.3,0.50688]
[1761228864275,6.16493045,3818.4,3818.2,0.93057481]
[1761228864276,2.61896655,3818.3,3818.2,0.93057481]
[1761228864479,7.72016655,3818.3,3818.2,0.93057481]
[1761228864636,8.38374272,3818.3,3818.2,0.93057481]
[1761228864833,2.61931344,3817.8,3816.3,2.85242536]
[1761228865155,0.55219146,3817.7,3817.1,0.2321]
[1761228865357,3.546,3817.6,3817.1,0.6994]
[1761228865543,3.546,3817.5,3817.1,0.6994]
[1761228865749,3.546,3817.5,3817.1,0.2321]
[1761228865950,3.546,3817.5,3817.2,3.06786633]
[1761228866141,3.546,3817.5,3817.2,0.4482]
[1761228866339,3.546,3817.4,3817.0,2.98553719]
[1761228866752,1.5552,3817.3,3817.0,2.98553719]
[1761228867147,2.61978989,3817.1,3817.0,2.98553719]
[1761228867474,1.5552,3817.1,3817.0,2.98553719]
[1761228867767,4.17498989,3817.1,3817.0,2.98553719]
[1761228867975,4.72830103,3817.1,3817.0,2.98553719]
[1761228868148,4.84110103,3817.1,3817.0,2.98553719]
[1761228869239,18.56697783,3817.1,3817.0,2.98553719]
[1761228869457,19.25825065,3817.1,3817.0,2.98553719]
[1761228869658,19.25825065,3817.1,3815.3,0.2207]
[1761228869659,2.62028198,3816.4,3815.3,0.2207]
[1761228869859,2.62028198,3816.4,3814.8,0.6]
[1761228869860,0.2203,3815.4,3814.8,0.6]
[1761228870062,1.5552,3815.2,3814.8,0.6]
[1761228870441,0.1129,3815.1,3814.8,0.6]
[1761228870661,0.1129,3815.1,3812.6,0.13246929]
[1761228870662,2.62219425,3813.6,3813.5,0.02622263]
[1761228870975,2.62219425,3813.6,3811.3,1.32736226]
[1761228870976,2.62219425,3813.6,3812.9,0.57622263]
[1761228870977,0.02722278,3813.5,3812.9,0.57622263]
[1761228871203,1.5552,3813.3,3812.9,0.57622263]
[1761228871484,1.5552,3813.3,3812.9,3.64108225]
[1761228871639,2.751,3814.7,3813.0,0.4422]
[1761228871841,0.1365026,3814.9,3813.2,2.62246931]
[1761228872149,0.02722278,3814.8,3813.5,0.50688]
[1761228872350,0.02722278,3814.8,3813.0,0.4422]
[1761228872351,0.02722278,3814.8,3813.1,2.62248584]
[1761228872561,0.02722278,3814.8,3813.0,0.4422]
[1761228872761,0.02722278,3814.8,3813.9,0.50688]
[1761228872964,0.1365026,3814.9,3814.3,0.50688]
[1761228873165,0.1365026,3814.9,3814.2,2.62178176]
[1761228873472,0.1365026,3814.9,3814.1,0.50688]
[1761228873641,0.1365026,3814.9,3814.4,0.50688]
[1761228873842,0.1365026,3814.9,3813.8,0.2207]
[1761228873843,0.1365026,3814.9,3814.2,0.4422]
[1761228874075,0.1365026,3814.9,3814.8,0.50688]
[1761228874453,0.1365026,3814.9,3814.8,3.1282494]
[1761228874665,0.1365026,3814.9,3814.8,0.50688]
[1761228875060,0.1365026,3814.9,3813.8,0.2207]
[1761228875061,0.16372538,3814.9,3813.8,0.2207]
[1761228875246,0.02722278,3814.8,3814.1,2.62180108]
[1761228875446,0.02722278,3814.8,3814.1,2.62184794]
[1761228875673,0.02722278,3814.8,3814.2,0.50688]
[1761228875853,0.02722278,3814.8,3814.5,0.50688]
[1761228876061,0.1365026,3814.9,3814.8,3.1282494]
[1761228876480,0.1365026,3814.9,3814.8,3.5704494]
[1761228876650,0.02722278,3816.1,3816.0,3.1274224]
[1761228876997,0.899,3817.0,3815.5,2.62088258]
[1761228877147,0.899,3817.0,3816.6,0.50688]
[1761228877649,0.899,3817.0,3816.7,0.50688]
[1761228877846,0.899,3817.0,3816.7,0.4422]
[1761228878080,0.02722278,3817.7,3816.9,0.50688]
[1761228878279,0.02722278,3817.7,3816.8,0.4422]
[1761228878280,3.063,3818.1,3817.4,2.61956209]
[1761228878460,0.02722278,3818.0,3816.9,0.50688]
[1761228878656,0.2203,3818.4,3817.2,0.50688]
[1761228878860,0.02722278,3818.3,3816.9,0.50688]
[1761228879061,0.02722278,3818.2,3817.1,0.50688]
[1761228879401,0.02722278,3818.5,3818.2,0.50688]
[1761228879551,2.61860966,3818.9,3818.2,0.50688]
[1761228879880,0.02722278,3819.1,3818.1,0.50688]
[1761228879881,1.5552,3818.7,3818.1,0.50688]
[1761228880055,1.5552,3818.1,3817.5,0.2207]
[1761228880257,0.02722278,3818.0,3817.3,0.2207]
[1761228880462,2.61953615,3817.5,3816.5,0.4422]
[1761228880659,0.12742278,3818.0,3816.4,2.84093997]
[1761228880660,1.5552,3817.3,3816.4,0.2207]
[1761228880859,0.02722278,3817.2,3816.4,0.2207]
[1761228881081,1.5552,3817.3,3816.4,0.2207]
[1761228881379,1.5552,3817.0,3815.8,3.06282437]
[1761228881569,1.5552,3816.6,3815.8,0.4422]
[1761228881771,0.1312,3815.9,3815.8,3.06286119]
[1761228882469,1.58242278,3816.5,3815.3,0.4422]
[1761228882650,1.58242278,3816.5,3815.5,2.62083305]
[1761228882852,1.5552,3816.3,3815.4,2.62089727]
[1761228883072,0.02722278,3816.2,3815.4,2.62089727]
[1761228883395,0.02722278,3816.2,3815.6,2.62080565]
[1761228883597,0.02722278,3816.2,3815.4,0.4422]
[1761228883790,0.02722278,3816.2,3815.5,2.62082286]
[1761228883987,0.02722278,3816.3,3815.6,3.12767627]
[1761228884174,0.02722278,3816.3,3815.8,0.50688]
[1761228884368,0.02642278,3816.3,3815.8,0.50688]
[1761228884698,0.02642278,3816.3,3815.7,0.50688]
[1761228885103,2.62039296,3816.3,3815.2,3.12793954]
[1761228885267,0.02642278,3816.2,3815.6,0.50688]
[1761228885994,0.02642278,3816.2,3815.5,0.50688]
[1761228886176,0.02642278,3816.2,3815.2,3.06328719]
[1761228886177,0.02642278,3816.2,3815.3,0.50688]
[1761228886509,1.5552,3816.2,3815.3,0.50688]
[1761228886665,0.02642278,3816.1,3815.3,0.50688]
[1761228886876,0.02642278,3816.1,3815.5,0.50688]
[1761228887388,5.19062278,3816.1,3815.4,0.50688]
[1761228887606,0.02642278,3816.0,3815.4,0.50688]
[1761228887909,4.20221807,3816.0,3815.1,0.50688]
[1761228888065,0.02642278,3815.9,3815.1,0.50688]
[1761228888270,1.5552,3816.0,3815.6,0.50688]
[1761228888478,3.609,3816.1,3816.0,3.12742507]
[1761228888703,3.30759187,3818.0,3816.0,0.24690545]
[1761228889000,1.5552,3817.4,3816.2,0.50688]
[1761228889220,1.5552,3817.2,3816.4,0.50688]
[1761228889385,1.5552,3817.0,3816.4,0.50688]
[1761228889724,1.5552,3816.9,3816.7,0.50688]
[1761228890005,1.5552,3816.9,3816.6,0.50688]
[1761228890372,1.5552,3816.9,3816.7,0.50688]
[1761228890373,0.02642278,3816.8,3816.7,0.50688]
[1761228891102,0.12892278,3816.8,3815.4,0.4422]
[1761228891300,2.62039965,3816.3,3815.4,3.06313371]
[1761228891604,0.02642278,3816.2,3815.5,0.50688]
[1761228891789,2.61991441,3817.0,3816.6,0.50688]
[1761228891790,3.602,3817.0,3816.6,0.50688]
[1761228891970,1.5552,3816.9,3816.6,0.50688]
[1761228892603,1.58162278,3816.9,3816.6,0.50688]
[1761228893182,1.5552,3816.5,3816.1,0.50688]
[1761228893681,4.17527067,3816.7,3816.1,0.50688]
[1761228893880,1.5552,3816.5,3816.1,0.50688]
[1761228894203,0.02642278,3816.5,3816.1,0.50688]
[1761228894571,0.02642278,3816.5,3816.1,0.94908]
[1761228894801,1.5552,3816.9,3816.2,0.50688]
[1761228895004,0.02642278,3816.8,3816.2,0.50688]
[1761228895676,0.02642278,3816.9,3816.4,3.12712618]
[1761228895882,3.598,3817.2,3816.7,2.62002081]
[1761228896103,3.598,3817.2,3816.7,0.4422]
[1761228896104,1.5552,3817.1,3816.7,0.4422]
[1761228896403,4.20147376,3817.1,3816.6,0.50688]
[1761228896577,1.58162278,3817.1,3816.1,0.50688]
[1761228896779,1.5552,3816.7,3816.1,0.50688]
[1761228896973,0.02642278,3816.6,3816.1,0.50688]
[1761228897385,0.02642278,3816.6,3816.1,0.94908]
[1761228897595,3.62242278,3816.6,3816.1,0.94908]
[1761228897795,1.55231865,3816.5,3816.1,0.94908]
[1761228898014,0.02642278,3816.4,3816.1,3.56955204]
[1761228898304,0.02642278,3816.4,3816.2,0.4422]
[1761228898514,0.02642278,3816.4,3816.3,0.50688]
[1761228898811,1.55231865,3816.5,3816.1,3.12734252]
[1761228899009,0.02642278,3816.4,3815.2,0.43]
[1761228899210,0.02642278,3816.4,3815.4,2.62095717]
[1761228899409,3.596,3816.6,3815.3,0.43]
[1761228899611,3.596,3816.6,3816.5,0.74398]
[1761228899789,5.1512,3816.6,3816.5,0.50688]
[1761228900512,5.1512,3816.6,3816.5,0.93688]
[1761228900901,7.8711331,3816.6,3816.5,0.50688]
[1761228901102,7.8711331,3816.6,3815.0,0.6507]
[1761228901103,7.8711331,3816.6,3815.0,0.2207]
[1761228901104,1.5552,3816.3,3815.0,0.2207]
[1761228901425,2.62136409,3814.9,3814.4,0.2371]
[1761228901612,1.50068206,3816.2,3814.6,0.43]
[1761228901613,5.1592,3814.8,3814.6,0.43]
[1761228901826,0.02642278,3815.6,3814.6,0.43]
[1761228901999,1.5552,3815.5,3814.7,0.50688]
[1761228902320,1.58162278,3815.5,3815.4,0.50688]
[1761228902743,1.6864,3815.5,3815.4,0.50688]
[1761228903083,4.30728848,3815.5,3815.4,0.50688]
[1761228903435,2.62110331,3815.2,3814.5,0.002]
[1761228903740,0.1312,3814.9,3814.5,0.002]
[1761228903913,0.02642278,3814.8,3814.5,0.002]
[1761228904113,0.1312,3814.6,3814.5,0.002]
[1761228904285,6.35270684,3814.6,3814.5,0.002]
[1761228904488,6.46630684,3814.6,3814.5,0.002]
[1761228904791,6.46630684,3814.6,3812.9,1.00622263]
[1761228904792,21.51234131,3814.6,3812.9,0.57622263]
[1761228904990,1.5552,3813.1,3812.9,0.57622263]
[1761228905188,18.91049958,3813.0,3812.9,0.57622263]
[1761228905419,21.50668367,3813.0,3812.9,0.57622263]
[1761228905631,22.15684974,3813.0,3812.9,0.57622263]
[1761228905791,19.53424287,3813.0,3812.9,0.57622263]
[1761228905993,5.70936607,3813.0,3812.9,0.57622263]
[1761228906193,7.87980687,3813.0,3812.9,0.57622263]
[1761228906500,5.1582,3813.0,3812.9,0.57622263]
[1761228906819,22.18239965,3813.0,3812.9,0.57622263]
[1761228907139,22.15597687,3813.0,3812.9,0.57522263]
[1761228907298,4.82710007,3813.0,3812.9,0.57522263]
[1761228907699,5.1642,3813.0,3812.9,0.57522263]
[1761228908031,6.23160687,3813.0,3812.9,0.57522263]
[1761228908194,7.78680687,3813.0,3812.9,0.57522263]
[1761228908395,1.5552,3813.0,3812.9,0.57522263]
[1761228908735,3.611,3813.0,3812.9,1.00522263]
[1761228908931,0.02642278,3813.4,3812.9,0.57522263]
[1761228909132,0.02642278,3813.9,3813.0,0.43]
[1761228909293,0.02642278,3813.9,3813.1,0.50688]
[1761228909494,0.02642278,3814.3,3813.3,0.50688]
[1761228909695,3.63742278,3814.2,3813.5,0.50688]
[1761228909893,3.611,3814.1,3813.5,0.50688]
[1761228910151,2.62148142,3814.7,3813.4,0.6671]
[1761228910152,0.2156,3814.9,3813.7,0.50688]
[1761228910302,1.5552,3814.6,3813.7,0.50688]
[1761228910499,0.02642278,3814.5,3813.7,0.43]
[1761228910697,0.2145,3815.2,3813.7,0.43]
[1761228911025,3.63542278,3815.1,3813.7,0.43]
[1761228911341,0.2138,3815.9,3813.8,0.53310056]
[1761228911546,5.70492278,3815.8,3813.8,0.50688]
[1761228911702,0.54940906,3815.7,3814.2,0.50688]
[1761228911904,2.62116487,3815.1,3814.2,0.50688]
[1761228912097,3.63442278,3815.0,3814.1,0.50688]
[1761228912297,3.63442278,3815.0,3814.2,0.43]
[1761228912713,3.63442278,3815.0,3813.4,0.2371]
[1761228912714,3.63442278,3815.0,3813.6,0.43]
[1761228912917,4.17650068,3814.9,3813.7,0.50688]
[1761228913115,0.02642278,3814.8,3813.4,0.2371]
[1761228913317,2.62177961,3814.3,3813.4,0.2371]
[1761228913550,2.64822511,3814.2,3813.4,0.2371]
[1761228913859,0.02642278,3814.1,3813.5,0.93688]
[1761228914171,0.02642278,3814.8,3814.0,0.50688]
[1761228914353,2.6214464,3814.7,3813.9,0.50688]
[1761228914554,3.604,3814.7,3814.1,2.6218505]
[1761228914754,3.604,3814.7,3813.8,0.50688]
[1761228914755,0.1312,3814.0,3813.8,0.50688]
[1761228915057,3.604,3813.9,3813.4,0.2371]
[1761228915232,0.02642278,3814.6,3813.4,0.2371]
[1761228915233,3.7352,3813.8,3813.4,0.2371]
[1761228915437,0.001,3814.2,3813.5,0.93688]
[1761228915760,0.001,3814.2,3814.1,3.1287305]
[1761228915963,1.494,3814.1,3813.6,0.43]
[1761228916257,1.494,3814.1,3813.4,0.2371]
[1761228916258,0.1312,3813.7,3813.4,0.2371]
[1761228916433,1.494,3814.1,3812.9,3.19986618]
[1761228916434,2.75351875,3813.5,3812.9,0.57722263]
[1761228916638,1.5562,3814.2,3813.0,0.43]
[1761228916639,3.63042278,3813.4,3813.0,0.43]
[1761228916843,3.604,3813.3,3813.1,0.50688]
[1761228917226,3.604,3813.3,3813.2,0.93688]
[1761228917663,0.02642278,3814.1,3813.3,0.50688]
[1761228917863,0.1312,3813.4,3812.9,0.57722263]
[1761228918064,2.62252694,3813.2,3812.9,0.57722263]
[1761228918228,0.1312,3813.0,3812.9,0.57722263]
[1761228918428,3.7352,3813.0,3812.9,0.57722263]
[1761228918663,0.1312,3813.0,3812.9,4.13677828]
[1761228918830,0.1312,3813.0,3812.9,1.51410263]
[1761228919031,0.1312,3813.0,3812.9,4.13677828]
[1761228919260,0.1312,3813.1,3813.0,3.12942079]
[1761228919437,0.149,3813.1,3813.0,0.50688]
[1761228920127,0.149,3813.1,3812.9,0.57722263]
[1761228920325,0.02642278,3813.5,3812.9,0.57722263]
[1761228920567,0.02642278,3813.5,3813.1,0.50688]
[1761228920568,3.605,3813.4,3813.1,0.50688]
[1761228920747,0.02642278,3813.3,3813.1,0.93688]
[1761228921157,0.02642278,3813.3,3812.9,3.19989743]
[1761228921158,0.001,3814.2,3813.2,0.43]
[1761228921358,6.22491614,3814.1,3813.3,0.50688]
[1761228921682,6.22491614,3814.1,3812.9,3.19989639]
[1761228921683,3.62842278,3814.0,3813.0,0.50688]
[1761228921863,0.001,3814.2,3813.4,0.50688]
[1761228922038,3.601,3814.1,3813.4,0.50688]
[1761228922241,3.62642278,3814.0,3813.4,0.50688]
[1761228922474,3.62642278,3814.0,3813.1,0.50688]
[1761228922637,3.62642278,3814.0,3813.0,0.43]
[1761228922638,3.62642278,3814.0,3813.3,0.50688]
[1761228922837,0.02642278,3814.0,3813.3,0.50688]
[1761228923163,1.58162278,3814.0,3813.2,3.12934297]
[1761228923492,3.598,3813.9,3813.5,0.50688]
[1761228923698,3.598,3813.9,3813.2,0.02622469]
[1761228923861,0.001,3814.2,3813.7,0.50688]
[1761228924073,0.001,3814.2,3814.1,0.74398]
[1761228924370,2.11,3814.2,3814.1,1.17398]
[1761228924579,2.11,3814.2,3814.1,0.74398]
[1761228924792,2.11,3814.2,3813.6,0.2371]
[1761228925086,2.11,3814.2,3813.3,0.2371]
[1761228925087,3.62442278,3814.1,3813.3,0.2371]
[1761228925287,3.62442278,3814.1,3813.4,0.50688]
[1761228925454,0.001,3814.2,3814.1,3.1287305]
[1761228925780,0.001,3814.2,3814.1,0.50688]
[1761228925984,3.598,3814.5,3814.4,2.62164429]
[1761228926157,3.598,3814.5,3814.2,2.62173447]
[1761228926158,2.62006507,3816.7,3815.4,0.50688]
[1761228926357,0.68619582,3816.8,3815.1,2.62110488]
[1761228926358,3.62542278,3816.6,3815.1,2.62110488]
[1761228926570,3.62542278,3816.6,3814.4,2.62164429]
[1761228926571,3.62542278,3816.6,3815.2,0.50688]
[1761228926748,3.599,3816.6,3815.4,0.50688]
[1761228926956,3.599,3816.6,3815.3,0.48481025]
[1761228926957,0.02642278,3816.5,3815.9,0.50688]
[1761228927351,3.599,3816.6,3816.0,0.6955]
[1761228927556,3.599,3816.6,3816.1,3.12732634]
[1761228927783,3.599,3816.6,3816.3,3.12715907]
[1761228928085,3.599,3816.6,3816.5,0.50688]
[1761228928275,3.599,3816.6,3816.5,0.96548]
[1761228928478,3.599,3816.6,3816.5,3.58568175]
[1761228928683,0.001,3817.3,3816.6,0.50688]
[1761228928995,0.001,3817.3,3817.2,0.50688]
[1761228929295,0.001,3817.3,3815.8,2.62063946]
[1761228929296,2.62022544,3816.5,3815.5,0.50688]
[1761228929460,0.2182,3816.7,3815.5,0.50688]
[1761228929461,0.1312,3815.6,3815.5,0.50688]
[1761228929799,0.1312,3815.6,3815.5,0.95088]
[1761228929993,0.1312,3815.6,3815.5,3.57176848]
[1761228930193,3.598,3816.1,3815.6,0.50688]
[1761228930491,1.207,3816.1,3815.6,0.95088]
[1761228930697,0.02642278,3816.0,3815.6,0.95088]
[1761228930899,1.207,3816.1,3816.0,0.72768]
[1761228931391,1.207,3816.1,3815.4,0.2208]
[1761228931578,0.02642278,3816.0,3815.1,0.2208]
[1761228931784,2.62068795,3815.8,3815.1,0.2208]
[1761228931983,2.62092102,3815.5,3815.1,0.2208]
[1761228932291,3.595,3815.4,3815.1,0.6648]
[1761228932469,2.62029549,3816.4,3815.1,0.6648]
[1761228932675,1.5552,3816.2,3815.3,0.50688]
[1761228932871,0.02642278,3816.1,3815.3,0.50688]
[1761228933179,0.02642278,3816.3,3815.3,3.06502586]
[1761228933511,0.55043834,3817.1,3815.5,0.50688]
[1761228933664,2.6202109,3816.5,3816.2,0.50688]
[1761228933991,0.02642278,3816.4,3816.2,0.50688]
[1761228934298,3.593,3816.8,3816.2,0.50688]
[1761228934299,3.593,3816.8,3816.2,3.57128052]
[1761228934517,0.001,3817.3,3816.8,5.7468716]
[1761228934797,0.001,3817.3,3817.2,0.50688]
[1761228934980,0.001,3817.3,3817.2,3.57060126]
[1761228935295,0.001,3817.3,3816.1,0.2208]
[1761228935296,0.001,3817.3,3816.8,0.50688]
[1761228935496,0.001,3817.3,3817.0,0.50688]
[1761228935696,0.001,3817.3,3817.2,0.50688]
[1761228935900,0.001,3817.3,3817.2,3.12660126]
[1761228936099,0.001,3817.3,3817.2,3.57060126]
[1761228936326,0.02642278,3819.1,3818.0,2.61916535]
[1761228936474,6.21054257,3819.0,3818.1,3.12597247]
[1761228936676,3.591,3818.9,3817.6,0.50688]
[1761228936902,3.591,3818.8,3817.4,0.444]
[1761228937103,3.591,3818.8,3818.7,3.12557222]
[1761228937597,3.591,3818.8,3818.7,0.95088]
[1761228937780,0.001,3819.3,3818.7,0.50688]
[1761228937974,0.001,3819.3,3818.7,3.12556201]
[1761228937975,3.59,3819.2,3818.7,3.12556201]
[1761228938301,0.001,3819.3,3818.7,0.50688]
[1761228938302,3.589,3819.1,3818.7,0.50688]
[1761228938478,0.001,3819.3,3818.9,0.50688]
[1761228938681,3.589,3819.3,3818.9,0.50688]
[1761228938998,3.589,3819.3,3819.1,0.50688]
[1761228939201,3.589,3819.3,3819.1,3.12529124]
[1761228939387,3.589,3819.3,3819.1,0.50688]
[1761228939588,0.001,3819.3,3819.2,0.95088]
[1761228940368,0.001,3819.3,3819.2,3.56922939]
[1761228940568,0.001,3819.3,3819.2,0.95088]
[1761228940769,0.001,3819.3,3819.2,0.50688]
[1761228941275,6.20130659,3819.3,3818.3,0.2208]
[1761228941472,2.61856251,3818.9,3818.3,0.2208]
[1761228941772,3.582,3818.8,3818.3,0.2208]
[1761228942001,3.582,3818.8,3818.4,0.50688]
[1761228942998,3.582,3818.8,3818.3,0.2208]
[1761228943586,3.582,3818.8,3818.4,0.50688]
[1761228943980,3.582,3818.8,3818.2,0.50688]
[1761228944496,3.582,3818.8,3818.4,0.50688]
[1761228945011,3.582,3818.8,3818.6,0.50688]
[1761228945177,3.582,3818.8,3818.0,0.2208]
[1761228945377,3.582,3818.8,3818.1,3.12596824]
[1761228945883,3.582,3818.8,3818.3,0.50688]
[1761228946191,3.582,3818.8,3818.1,0.50688]
[1761228946525,3.582,3818.8,3818.2,0.50688]
[1761228946675,3.582,3818.8,3818.0,0.6648]
[1761228946676,0.001,3819.3,3818.3,0.444]
[1761228946883,0.001,3819.3,3819.2,0.72768]
[1761228947077,0.001,3819.3,3819.2,3.79002939]
[1761228949798,0.001,3819.7,3819.6,3.12495519]
[1761228950004,0.001,3819.7,3819.6,3.56895519]
[1761228950517,0.001,3819.7,3819.6,3.70015519]
[1761228951334,0.001,3819.7,3819.6,3.72633594]
[1761228951521,0.1312,3820.8,3820.7,0.50688]
[1761228951722,3.6952,3820.8,3820.5,0.50688]
[1761228951921,0.1312,3820.8,3820.5,3.12429035]
[1761228952136,3.6952,3820.8,3820.5,3.12429035]
[1761228952637,3.6952,3820.8,3820.2,0.1312]
[1761228952638,7.86765293,3820.8,3820.7,0.50688]
[1761228952803,7.86765293,3820.8,3819.8,0.50688]
[1761228952804,0.1312,3820.8,3819.8,0.50688]
[1761228953004,0.1312,3820.3,3819.2,0.2208]
[1761228953312,0.1312,3820.0,3819.6,0.50688]
[1761228953528,0.1312,3820.0,3819.9,0.50688]
[1761228953724,3.562,3820.3,3819.9,0.1312]
[1761228953929,0.0999,3822.5,3820.0,5.305]
[1761228954099,0.2182,3823.1,3820.0,5.305]
[1761228954100,0.267,3822.6,3821.7,0.50688]
[1761228954310,2.64255955,3822.5,3821.6,0.50688]
[1761228954533,1.5552,3822.3,3821.6,0.50688]
[1761228954803,0.267,3822.6,3821.6,3.12357434]
[1761228955046,0.267,3822.6,3821.6,0.95088]
[1761228955201,0.267,3822.6,3821.5,0.24696773]
[1761228955202,0.3159,3823.6,3822.2,0.50688]
[1761228955401,0.1096,3823.4,3822.1,0.50688]
[1761228955600,0.1908,3824.0,3822.1,0.50688]
[1761228955837,0.00577042,3824.1,3822.3,0.50688]
[1761228956042,0.00577042,3824.1,3823.4,0.50688]
[1761228956249,0.00577042,3824.1,3822.1,1.5552]
[1761228956250,0.1106,3823.5,3818.9,0.2208]
[1761228956464,1.5552,3821.8,3819.7,0.444]
[1761228956744,2.61602863,3822.6,3818.9,0.2208]
[1761228956745,0.78617739,3822.4,3820.2,0.47017663]
[1761228956954,2.5645302,3823.4,3820.2,0.47017663]
[1761228956955,1.5552,3822.6,3820.3,2.61759547]
[1761228957104,0.844,3822.6,3821.2,2.61697394]
[1761228957306,0.844,3822.6,3821.3,0.6648]
[1761228957504,0.2056,3823.3,3822.4,2.6161164]
[1761228957505,0.02642278,3823.3,3822.4,2.6161164]
[1761228957705,0.02642278,3823.3,3822.5,2.83684898]
[1761228957915,3.6112,3823.2,3822.6,2.61595229]
[1761228958139,0.00577042,3824.1,3822.7,0.02615952]
[1761228958338,3.61777042,3824.1,3822.5,0.2208]
[1761228958559,3.61777042,3824.1,3820.1,2.83849261]
[1761228958560,2.61569098,3823.1,3822.1,0.50688]
[1761228958761,13.8832608,3823.8,3822.1,0.50688]
[1761228958762,3.616,3823.0,3822.1,0.50688]
[1761228958962,3.619,3822.9,3822.3,0.50688]
[1761228959152,3.619,3822.8,3822.1,0.4676]
[1761228959352,0.02642278,3822.7,3821.4,0.4676]
[1761228959663,2.61614492,3822.5,3821.7,0.50688]
[1761228959862,0.3138,3823.0,3821.7,0.50688]
[1761228960071,3.618,3822.9,3822.1,0.50688]
[1761228960267,6.23289756,3822.8,3821.8,0.50688]
[1761228960763,3.617,3822.7,3821.4,0.4676]
[1761228960956,2.61625068,3822.3,3821.4,0.4676]
[1761228961152,0.02642278,3822.6,3821.4,0.4676]
[1761228961354,7.78429951,3822.5,3821.6,2.61663852]
[1761228961554,0.217,3823.1,3821.7,0.02616636]
[1761228961868,3.614,3823.0,3821.8,0.50688]
[1761228962071,2.61610097,3822.5,3821.8,0.50688]
[1761228962293,0.099,3823.0,3821.6,0.50688]
[1761228962466,3.616,3822.9,3822.3,0.50688]
[1761228962670,4.17110484,3822.8,3822.3,0.50688]
[1761228962986,3.616,3822.9,3821.9,2.6164316]
[1761228962987,2.61586636,3822.9,3821.9,2.6164316]
[1761228963150,1.96777042,3824.1,3822.1,0.50688]
[1761228963350,13.8832608,3823.9,3822.1,0.50688]
[1761228963584,2.61608042,3822.6,3821.6,0.50688]
[1761228963761,2.61615738,3822.4,3821.5,2.61676763]
[1761228964083,1.5552,3823.3,3821.3,2.83769599]
[1761228964084,0.3138,3823.3,3821.6,0.4676]
[1761228964247,0.1312,3822.5,3822.1,0.50688]
[1761228964451,2.61623127,3822.3,3822.1,0.50688]
[1761228964785,0.1312,3822.2,3821.7,0.50688]
[1761228964985,0.1312,3822.2,3821.6,0.1312]
[1761228964986,2.61589431,3822.8,3822.1,0.50688]
[1761228965193,6.22896329,3822.7,3822.1,0.50688]
[1761228965393,1.5552,3822.6,3821.8,0.50688]
[1761228965894,3.613,3822.7,3822.0,0.50688]
[1761228965895,6.2289753,3822.7,3822.0,0.50688]
[1761228966087,6.2289753,3822.7,3821.3,0.2208]
[1761228966088,1.58162278,3822.6,3821.3,0.2208]
[1761228966296,1.68062278,3822.6,3821.3,0.2208]
[1761228966461,0.099,3822.5,3821.2,2.61697011]
[1761228966657,0.02642278,3822.4,3821.3,0.50688]
[1761228966863,3.609,3822.3,3821.8,0.50688]
[1761228967296,3.61,3822.2,3821.8,0.50688]
[1761228967497,3.61,3822.1,3821.7,0.2303]
[1761228967665,2.61660761,3821.8,3820.8,0.4676]
[1761228967866,2.61717229,3821.0,3820.2,0.4676]
[1761228968068,0.02642278,3821.7,3820.2,0.4676]
[1761228968069,0.1002,3821.7,3820.2,0.4676]
[1761228968272,2.61684199,3821.4,3820.3,2.83833697]
[1761228968510,2.61702745,3821.2,3820.3,0.2208]
[1761228968711,0.02642278,3821.1,3820.1,0.2208]
[1761228968996,1.5552,3821.8,3820.1,0.2208]
[1761228968997,0.1737,3821.7,3820.4,0.2303]
[1761228969206,1.5552,3821.5,3820.4,0.2303]
[1761228969376,1.5552,3821.5,3820.7,2.61727125]
[1761228969564,1.5552,3821.5,3820.4,0.6979]
[1761228969565,3.607,3821.4,3820.8,0.50688]
[1761228969769,3.63342278,3821.4,3820.5,0.50688]
[1761228969999,2.61692508,3821.3,3820.5,2.61744588]
[1761228970218,4.1722953,3821.1,3820.6,0.50688]
[1761228970373,1.5552,3821.1,3820.5,0.50688]
[1761228970571,2.61704839,3821.1,3820.1,0.2208]
[1761228970884,1.5552,3821.1,3820.1,0.2208]
[1761228971068,0.1737,3821.7,3820.1,0.6884]
[1761228971268,0.099,3822.8,3822.0,0.50688]
[1761228971505,2.61607519,3822.6,3821.9,3.12334846]
[1761228971671,2.61617041,3822.4,3821.8,0.50688]
[1761228971868,3.45795468,3822.7,3821.8,0.50688]
[1761228971869,0.842,3822.7,3821.8,0.50688]
[1761228972177,3.29874011,3823.8,3822.6,0.2303]
[1761228972379,6.22027297,3823.7,3822.8,2.61586957]
[1761228972586,2.61546313,3823.5,3822.8,2.61586957]
[1761228972778,2.6158639,3822.9,3821.6,0.6979]
[1761228972982,5.1602,3822.8,3822.1,0.50688]
[1761228973182,3.605,3822.7,3822.3,0.50688]
[1761228973378,3.604,3822.6,3822.0,3.12330026]
[1761228973617,6.22006541,3822.6,3821.9,0.50688]
[1761228973817,3.604,3822.6,3821.9,0.50688]
[1761228973995,3.604,3822.6,3821.8,2.61656773]
[1761228973996,3.603,3822.5,3822.2,0.50688]
[1761228974326,2.61620483,3822.4,3821.7,0.50688]
[1761228974625,0.2146,3822.4,3821.7,0.50688]
[1761228974797,0.2146,3822.4,3821.2,0.4676]
[1761228974798,2.61640873,3822.1,3821.5,0.50688]
[1761228975001,0.1312,3822.0,3821.5,0.50688]